[Event "ESP-ch U1700 2024"]
[Site "Albacete"]
[Date "2024.08.31"]
[Round "7.4"]
[White "Muniz Otero, Lucas"]
[Black "Varela Cano, Hugo"]
[Result "1-0"]
[ECO "B23"]
[WhiteElo "1605"]
[BlackElo "1691"]
[Annotator "NA RC COMBH"]
[PlyCount "92"]
[EventDate "2024.08.27"]
[EventType "swiss"]
[EventCountry "ESP"]
[SourceTitle "playchess.com"]
[Source "ChessBase"]
[SourceQuality "1"]
[TimeControl "5400+30"]

1. e4 {[%emt 0:00:03]} c5 {[%emt 0:00:19]} 2. Nc3 {[%emt 0:00:04]} e6 {[%emt 0:00:24]} 3. f4 {[%emt 0:00:08]} d6 {[%emt 0:03:21]} 4. Nf3 {[%emt 0:00:27]} Nf6 {[%emt 0:03:58]} 5. Bb5+ {[%emt 0:00:20]} Nbd7 {[%emt 0:05:45]} 6. O-O Be7 {[%emt 0:01:03]} 7. d3 {[%emt 0:00:58]} O-O {[%emt 0:02:33]} 8. Qe1 {[%emt 0:02:07]} a6 {[%emt 0:03:09]} 9. Bxd7 {[%emt 0:02:11]} Bxd7 {[%emt 0:01:41]} 10. Qg3 {[%emt 0:02:37]} Qc7 {[%emt 0:13:20]} 11. f5 {[%emt 0:03:22]} exf5 {[%emt 0:13:31]} 12. exf5 {[%emt 0:15:19]} Bxf5 {[%emt 0:02:33]} 13. Nh4 {[%emt 0:00:23]} Bg6 {[%emt 0:10:54]} 14. Nf5 {[%emt 0:06:38]} Rfe8 {[%emt 0:07:04]} 15. Bg5 {[%emt 0:06:37]} Bxf5 {[%emt 0:09:44]} 16. Rxf5 {[%emt 0:04:24]} Kh8 {[%emt 0:03:43]} 17. Bxf6 {[%emt 0:02:29]} Bxf6 {[%emt 0:01:49]} 18. Nd5 {[%emt 0:01:21]} Qd8 {[%emt 0:01:16]} 19. Nxf6 {[%emt 0:01:12]} gxf6 {[%emt 0:01:09]} 20. Qh4 {[%emt 0:01:10]} Re6 {[%emt 0:01:03]} 21. Raf1 Kg7 {[%emt 0:06:41]} 22. R1f3 {[%emt 0:06:59]} h6 {[%emt 0:03:41]} 23. Rg3+ {[%emt 0:02:39]} Kh7 {[%emt 0:00:30]} 24. Rh3 {[%emt 0:01:11]} Qf8 {[%emt 0:00:32]} 25. Rxf6 {[%emt 0:00:14]} Rae8 {[%emt 0:01:24]} 26. Rhf3 {[%emt 0:02:12]} Re1+ {[%emt 0:00:24]} 27. Rf1 {[%emt 0:00:30]} Qg7 {[%emt 0:00:20]} 28. Rxe1 {[%emt 0:06:01]} Rxe1+ {[%emt 0:00:05]} 29. Qxe1 {[%emt 0:00:07]} Qxf6 {[%emt 0:00:02]} 30. Qe4+ {[%emt 0:00:08]} Kg7 {[%emt 0:01:03]} 31. Qxb7 {[%emt 0:01:12]} Qf4 32. Qb3 {[%emt 0:01:54]} Qd2 {[%emt 0:01:53]} 33. Qc3+ {[%emt 0:09:31]} Qxc3 34. bxc3 {[%emt 0:00:01]} Kf6 {[%emt 0:00:24]} 35. Kf2 {[%emt 0:00:24]} Ke6 {[%emt 0:00:24]} 36. Ke3 {[%emt 0:01:56]} d5 {[%emt 0:01:08]} 37. c4 {[%emt 0:01:40]} d4+ {[%emt 0:01:20]} 38. Kd2 {[%emt 0:00:07]} h5 {[%emt 0:00:30]} 39. c3 {[%emt 0:00:41]} Ke5 {[%emt 0:00:14]} 40. g3 {[%emt 0:01:14]} f5 {[%emt 0:00:23]} 41. Kc2 {[%emt 0:00:44]} a5 {[%emt 0:01:02]} 42. Kd2 {[%emt 0:01:22]} a4 {[%emt 0:00:27]} 43. Kc2 {[%emt 0:01:00]} a3 {[%emt 0:00:30]} 44. h4 {[%emt 0:03:42]} dxc3 {[%emt 0:00:35]} 45. Kxc3 {[%emt 0:00:03]} f4 {[%emt 0:00:09]} 46. gxf4+ {[%emt 0:00:33]} Kd6 1-0

[Event "ESP-ch U1700 2024"]
[Site "Albacete"]
[Date "2024.08.31"]
[Round "7.5"]
[White "Trujillo Torres, Alvaro"]
[Black "Lopez Milian, Adela"]
[Result "1/2-1/2"]
[ECO "C02"]
[WhiteElo "1595"]
[BlackElo "1681"]
[Annotator "NA RC COMBH"]
[PlyCount "132"]
[EventDate "2024.08.27"]
[EventType "swiss"]
[EventCountry "ESP"]
[SourceTitle "playchess.com"]
[Source "ChessBase"]
[SourceQuality "1"]
[TimeControl "5400+30"]

1. e4 {[%emt 0:00:04]} e6 {[%emt 0:00:04]} 2. d4 {[%emt 0:00:07]} d5 {[%emt 0:00:02]} 3. e5 {[%emt 0:00:07]} c5 {[%emt 0:00:04]} 4. c3 {[%emt 0:00:06]} Nc6 {[%emt 0:00:06]} 5. Nf3 {[%emt 0:00:06]} a6 {[%emt 0:00:46]} 6. Bd3 {[%emt 0:00:07]} c4 {[%emt 0:00:24]} 7. Bc2 {[%emt 0:00:11]} b5 {[%emt 0:00:25]} 8. Nbd2 {[%emt 0:01:04]} a5 {[%emt 0:00:32]} 9. Nf1 {[%emt 0:00:33]} Bd7 {[%emt 0:01:24]} 10. Ng3 {[%emt 0:00:50]} Nge7 {[%emt 0:03:40]} 11. Ng5 {[%emt 0:02:44]} h6 {[%emt 0:08:30]} 12. Nh7 {[%emt 0:00:20]} Qc7 {[%emt 0:36:09]} 13. Nxf8 {[%emt 0:03:51]} Kxf8 {[%emt 0:04:10]} 14. O-O {[%emt 0:03:20]} Ng6 {[%emt 0:09:35]} 15. f4 {[%emt 0:08:49]} Nce7 {[%emt 0:05:15]} 16. f5 {[%emt 0:08:08]} exf5 {[%emt 0:00:14]} 17. Nxf5 {[%emt 0:00:32]} Bxf5 {[%emt 0:01:05]} 18. Bxf5 {[%emt 0:00:06]} Nxf5 {[%emt 0:00:04]} 19. Rxf5 {[%emt 0:00:09]} Kg8 {[%emt 0:00:21]} 20. Bd2 {[%emt 0:19:16]} Kh7 {[%emt 0:00:49]} 21. Qe2 {[%emt 0:04:33]} Qd7 {[%emt 0:01:25]} 22. Rf2 {[%emt 0:06:21]} Qe6 {[%emt 0:00:38]} 23. Raf1 {[%emt 0:05:44]} Rhf8 {[%emt 0:01:09]} 24. Bf4 {[%emt 0:01:58]} Nxf4 {[%emt 0:10:28]} 25. Rxf4 {[%emt 0:00:09]} Kg8 {[%emt 0:00:58]} 26. Qg4 {[%emt 0:04:42]} Qxg4 {[%emt 0:01:00]} 27. Rxg4 {[%emt 0:00:03]} Ra6 {[%emt 0:00:08]} 28. Rgf4 {[%emt 0:10:01]} b4 {[%emt 0:03:30]} 29. R4f2 {[%emt 0:05:09]} Rb6 {[%emt 0:01:37]} 30. Rc1 {[%emt 0:08:22]} Rfb8 {[%emt 0:00:55]} 31. Rcc2 {[%emt 0:02:58]} b3 {[%emt 0:03:32]} 32. axb3 {[%emt 0:00:34]} Rxb3 {[%emt 0:00:03]} 33. Kf1 {[%emt 0:01:22]} a4 {[%emt 0:00:06]} 34. Ke1 {[%emt 0:01:18]} a3 {[%emt 0:00:28]} 35. bxa3 {[%emt 0:00:07]} Rxa3 {[%emt 0:00:01]} 36. Kd2 {[%emt 0:01:36]} Rb1 {[%emt 0:00:54]} 37. Re2 {[%emt 0:01:29]} Rbb3 {[%emt 0:01:22]} 38. e6 {[%emt 0:00:38]} fxe6 {[%emt 0:01:01]} 39. Rxe6 {[%emt 0:00:02]} Rb1 {[%emt 0:00:33]} 40. g3 {[%emt 0:01:13]} Raa1 {[%emt 0:00:24]} 41. Re5 {[%emt 0:00:38]} Rd1+ {[%emt 0:00:45]} 42. Ke3 {[%emt 0:00:03]} Rd3+ {[%emt 0:00:36]} 43. Kf2 {[%emt 0:01:12]} Ra5 {[%emt 0:00:15]} 44. Ke2 {[%emt 0:00:43]} Kf7 {[%emt 0:00:31]} 45. Kf2 {[%emt 0:00:31]} Kf6 {[%emt 0:00:28]} 46. Re1 {[%emt 0:00:46]} Ra3 {[%emt 0:00:26]} 47. Re3 {[%emt 0:00:24]} Rd1 {[%emt 0:03:33]} 48. Re1 {[%emt 0:00:47]} Raa1 {[%emt 0:00:28]} 49. Rce2 {[%emt 0:00:29]} Rxe1 {[%emt 0:00:51]} 50. Rxe1 {[%emt 0:00:01]} Rxe1 {[%emt 0:00:01]} 51. Kxe1 {[%emt 0:00:02]} Kf5 {[%emt 0:00:01]} 52. Kf2 {[%emt 0:00:08]} Ke4 {[%emt 0:00:49]} 53. Ke2 {[%emt 0:00:21]} g6 {[%emt 0:00:31]} 54. h3 {[%emt 0:01:20]} h5 {[%emt 0:02:11]} 55. h4 {[%emt 0:00:28]} Kf5 {[%emt 0:00:26]} 56. Kf3 {[%emt 0:01:15]} g5 {[%emt 0:00:03]} 57. hxg5 {[%emt 0:00:27]} Kxg5 {[%emt 0:00:03]} 58. Kf2 {[%emt 0:00:12]} Kg4 {[%emt 0:01:54]} 59. Kg2 {[%emt 0:00:01]} Kg5 60. Kf2 {[%emt 0:00:23]} Kf6 {[%emt 0:01:13]} 61. Ke3 {[%emt 0:00:50]} Kg5 {[%emt 0:00:56]} 62. Kf2 {[%emt 0:00:05]} Kg6 {[%emt 0:00:45]} 63. Ke3 {[%emt 0:00:27]} Kf5 {[%emt 0:00:27]} 64. Kf3 {[%emt 0:00:11]} Kg5 {[%emt 0:00:03]} 65. Kf2 {[%emt 0:00:23]} Kg4 {[%emt 0:01:10]} 66. Kg2 {[%emt 0:00:51]} Kg5 {[%emt 0:00:14]} 1/2-1/2

[Event "ESP-ch U1700 2024"]
[Site "Albacete"]
[Date "2024.08.31"]
[Round "7.6"]
[White "Quiros Florea, Rafael-Santiago"]
[Black "Perez Fernandez, Alvaro"]
[Result "0-1"]
[ECO "E73"]
[WhiteElo "1666"]
[BlackElo "1638"]
[Annotator "NA RC COMBH"]
[PlyCount "60"]
[EventDate "2024.08.27"]
[EventType "swiss"]
[EventCountry "ESP"]
[SourceTitle "playchess.com"]
[Source "ChessBase"]
[SourceQuality "1"]
[TimeControl "5400+30"]

1. d4 {[%emt 0:00:05]} Nf6 {[%emt 0:00:28]} 2. c4 {[%emt 0:00:41]} d6 {[%emt 0:01:10]} 3. Nc3 {[%emt 0:01:18]} g6 {[%emt 0:02:44]} 4. e4 {[%emt 0:00:53]} Bg7 {[%emt 0:01:22]} 5. Be2 {[%emt 0:00:33]} O-O {[%emt 0:02:06]} 6. Be3 {[%emt 0:00:16]} e5 {[%emt 0:01:35]} 7. d5 {[%emt 0:00:21]} Nbd7 {[%emt 0:02:08]} 8. g4 {[%emt 0:03:49]} Ne8 {[%emt 0:08:42]} 9. h4 {[%emt 0:05:06]} h6 {[%emt 0:10:23]} 10. Qd2 {[%emt 0:06:05]} Kh7 {[%emt 0:01:47]} 11. O-O-O {[%emt 0:00:38]} Rh8 {[%emt 0:05:10]} 12. g5 {[%emt 0:05:54]} h5 {[%emt 0:02:39]} 13. Rf1 {[%emt 0:02:23]} Rf8 {[%emt 0:02:38]} 14. Nh3 {[%emt 0:06:03]} Nb6 {[%emt 0:03:19]} 15. f4 {[%emt 0:02:06]} Bxh3 {[%emt 0:00:33]} 16. Rxh3 {[%emt 0:00:29]} exf4 {[%emt 0:00:17]} 17. Bxf4 {[%emt 0:01:18]} Qe7 {[%emt 0:02:03]} 18. Bd3 {[%emt 0:05:47]} a5 {[%emt 0:05:49]} 19. Qe2 {[%emt 0:01:15]} a4 {[%emt 0:02:03]} 20. Re3 {[%emt 0:05:16]} a3 {[%emt 0:04:33]} 21. e5 {[%emt 0:00:29]} dxe5 {[%emt 0:03:48]} 22. Bxe5 {[%emt 0:00:21]} Bxe5 {[%emt 0:00:20]} 23. Rxe5 {[%emt 0:00:56]} axb2+ {[%emt 0:00:10]} 24. Kb1 {[%emt 0:01:28]} Qb4 {[%emt 0:02:52]} 25. Qxh5+ {[%emt 0:01:20]} Kg8 {[%emt 0:00:29]} 26. Bxg6 {[%emt 0:01:29]} fxg6 {[%emt 0:00:33]} 27. Qxg6+ {[%emt 0:00:32]} Ng7 {[%emt 0:00:29]} 28. Rxf8+ {[%emt 0:05:39]} Rxf8 {[%emt 0:01:25]} 29. Qd3 {[%emt 0:00:26]} Nxc4 {[%emt 0:00:26]} 30. Re1 {[%emt 0:03:00]} Na3# {[%emt 0:00:16]} 0-1

[Event "ESP-ch U1700 2024"]
[Site "Albacete"]
[Date "2024.08.31"]
[Round "7.8"]
[White "Solanilla Olcese, Ada"]
[Black "Zubizarreta Landera, Maddi"]
[Result "1-0"]
[ECO "C01"]
[WhiteElo "1668"]
[BlackElo "1699"]
[Annotator "NA RC COMBH"]
[PlyCount "98"]
[EventDate "2024.08.27"]
[EventType "swiss"]
[EventCountry "ESP"]
[SourceTitle "playchess.com"]
[Source "ChessBase"]
[SourceQuality "1"]
[TimeControl "5400+30"]

1. e4 {[%emt 0:00:02]} e6 {[%emt 0:03:08]} 2. d4 {[%emt 0:00:09]} d5 {[%emt 0:00:08]} 3. exd5 {[%emt 0:00:19]} exd5 {[%emt 0:00:05]} 4. Nf3 {[%emt 0:00:33]} Bd6 {[%emt 0:00:33]} 5. Bd3 {[%emt 0:00:48]} Bg4 {[%emt 0:03:00]} 6. O-O {[%emt 0:02:06]} Ne7 {[%emt 0:00:14]} 7. c3 {[%emt 0:00:48]} Bf5 {[%emt 0:02:53]} 8. Bxf5 {[%emt 0:01:27]} Nxf5 {[%emt 0:00:06]} 9. Qd3 {[%emt 0:02:17]} Ne7 {[%emt 0:08:03]} 10. Qb5+ {[%emt 0:03:02]} Nbc6 {[%emt 0:07:11]} 11. Qxb7 {[%emt 0:04:11]} Rb8 {[%emt 0:00:06]} 12. Qa6 {[%emt 0:00:21]} O-O {[%emt 0:00:35]} 13. Nbd2 {[%emt 0:02:00]} h6 {[%emt 0:04:08]} 14. Nb3 {[%emt 0:04:20]} Rb6 {[%emt 0:01:31]} 15. Qd3 {[%emt 0:02:36]} Ng6 {[%emt 0:04:00]} 16. Re1 {[%emt 0:04:04]} Nf4 {[%emt 0:06:16]} 17. Bxf4 {[%emt 0:05:20]} Bxf4 {[%emt 0:00:06]} 18. Rab1 {[%emt 0:03:31]} Ne7 {[%emt 0:02:35]} 19. g3 {[%emt 0:08:54]} Rg6 {[%emt 0:05:45]} 20. Ne5 {[%emt 0:05:43]} Bxe5 {[%emt 0:00:13]} 21. Rxe5 {[%emt 0:00:46]} Nc8 {[%emt 0:02:27]} 22. Nc5 {[%emt 0:02:39]} c6 {[%emt 0:01:26]} 23. Rbe1 {[%emt 0:03:14]} Nd6 {[%emt 0:04:45]} 24. Qe2 {[%emt 0:03:57]} Qc8 {[%emt 0:03:53]} 25. Qa6 {[%emt 0:06:37]} Nc4 {[%emt 0:03:04]} 26. Qxc8 {[%emt 0:01:48]} Rxc8 {[%emt 0:00:07]} 27. Re8+ {[%emt 0:00:31]} Rxe8 {[%emt 0:00:08]} 28. Rxe8+ {[%emt 0:00:06]} Kh7 {[%emt 0:00:03]} 29. Re2 {[%emt 0:01:18]} a5 {[%emt 0:02:56]} 30. Nb7 {[%emt 0:03:37]} a4 {[%emt 0:01:28]} 31. Nc5 {[%emt 0:00:19]} Nb6 {[%emt 0:00:41]} 32. Re7 {[%emt 0:01:58]} Kg8 {[%emt 0:02:16]} 33. Rb7 {[%emt 0:00:57]} Nc4 {[%emt 0:00:10]} 34. Nxa4 {[%emt 0:02:36]} Re6 {[%emt 0:00:17]} 35. Nc5 {[%emt 0:05:05]} Re1+ {[%emt 0:00:47]} 36. Kg2 {[%emt 0:00:17]} Ra1 {[%emt 0:00:20]} 37. a3 {[%emt 0:03:25]} Rb1 {[%emt 0:01:19]} 38. Nd3 {[%emt 0:01:14]} Nxa3 {[%emt 0:04:26]} 39. Ne5 {[%emt 0:01:44]} Nb5 {[%emt 0:01:39]} 40. Nxc6 {[%emt 0:01:04]} Nxc3 {[%emt 0:01:14]} 41. Rb8+ {[%emt 0:00:22]} Kh7 {[%emt 0:00:12]} 42. bxc3 {[%emt 0:00:10]} Rxb8 {[%emt 0:01:12]} 43. Nxb8 {[%emt 0:00:07]} Kg6 {[%emt 0:00:04]} 44. Nc6 {[%emt 0:00:15]} Kf6 {[%emt 0:00:09]} 45. Nb4 {[%emt 0:00:44]} Ke6 {[%emt 0:00:09]} 46. Nd3 {[%emt 0:00:25]} Kd6 {[%emt 0:00:21]} 47. Kf3 {[%emt 0:00:56]} Ke6 {[%emt 0:00:24]} 48. Kg4 {[%emt 0:00:46]} Kf6 {[%emt 0:00:27]} 49. Nf4 {[%emt 0:00:33]} Ke7 1-0

[Event "ESP-ch U1700 2024"]
[Site "Albacete"]
[Date "2024.08.31"]
[Round "7.9"]
[White "Carrilero Otalora, Vanesa"]
[Black "El Ammari Rovira, Sara"]
[Result "0-1"]
[ECO "A96"]
[WhiteElo "1692"]
[BlackElo "1652"]
[Annotator "NA RC COMBH"]
[PlyCount "116"]
[EventDate "2024.08.27"]
[EventType "swiss"]
[EventCountry "ESP"]
[SourceTitle "playchess.com"]
[Source "ChessBase"]
[SourceQuality "1"]
[TimeControl "5400+30"]

1. d4 {[%emt 0:00:07]} f5 {[%emt 0:00:09]} 2. g3 {[%emt 0:00:48]} Nf6 {[%emt 0:01:14]} 3. Bg2 {[%emt 0:00:44]} e6 {[%emt 0:00:51]} 4. Nf3 {[%emt 0:01:27]} d6 {[%emt 0:01:53]} 5. c4 {[%emt 0:02:32]} Be7 {[%emt 0:03:57]} 6. O-O {[%emt 0:04:31]} O-O {[%emt 0:01:02]} 7. Nc3 {[%emt 0:01:34]} Nbd7 {[%emt 0:07:33]} 8. Ng5 {[%emt 0:10:58]} Nb6 {[%emt 0:07:54]} 9. Qb3 {[%emt 0:08:46]} d5 {[%emt 0:30:12]} 10. c5 {[%emt 0:18:36]} Nc4 {[%emt 0:00:17]} 11. Qd1 {[%emt 0:02:28]} Na5 {[%emt 0:01:14]} 12. Nf3 {[%emt 0:06:11]} Nc6 {[%emt 0:01:20]} 13. Bf4 {[%emt 0:02:51]} a6 {[%emt 0:06:33]} 14. a3 {[%emt 0:01:29]} Ne4 {[%emt 0:02:44]} 15. Qc1 {[%emt 0:07:10]} Nxc3 {[%emt 0:16:44]} 16. Qxc3 {[%emt 0:00:42]} g5 {[%emt 0:02:56]} 17. Bd2 {[%emt 0:03:30]} g4 {[%emt 0:03:08]} 18. Ne5 {[%emt 0:01:57]} Nxe5 {[%emt 0:00:16]} 19. dxe5 {[%emt 0:00:08]} Bg5 {[%emt 0:01:07]} 20. Qc1 {[%emt 0:01:11]} Bxd2 {[%emt 0:00:38]} 21. Qxd2 {[%emt 0:00:06]} Rf7 {[%emt 0:00:27]} 22. f3 {[%emt 0:02:23]} gxf3 {[%emt 0:01:29]} 23. Rxf3 {[%emt 0:02:07]} Bd7 {[%emt 0:00:51]} 24. Rd1 {[%emt 0:06:13]} Qe7 {[%emt 0:00:23]} 25. Qc1 {[%emt 0:03:17]} Bb5 {[%emt 0:00:45]} 26. Bf1 {[%emt 0:02:17]} Rg7 {[%emt 0:00:34]} 27. Rd4 {[%emt 0:00:32]} Bc6 {[%emt 0:00:41]} 28. Bg2 {[%emt 0:04:52]} Rf8 {[%emt 0:00:38]} 29. Qd2 {[%emt 0:01:09]} Rg6 {[%emt 0:00:34]} 30. Qc3 {[%emt 0:02:37]} Qg7 {[%emt 0:00:34]} 31. Qe3 {[%emt 0:00:34]} h5 {[%emt 0:00:34]} 32. Rff4 {[%emt 0:00:13]} Rg5 {[%emt 0:01:01]} 33. Rh4 {[%emt 0:01:00]} Qh6 {[%emt 0:01:07]} 34. Kh1 {[%emt 0:00:53]} Rf7 {[%emt 0:00:54]} 35. Bf3 {[%emt 0:00:15]} Rh7 {[%emt 0:00:07]} 36. Qf2 {[%emt 0:00:49]} Qg7 {[%emt 0:00:38]} 37. Qg2 {[%emt 0:01:03]} Qxe5 {[%emt 0:00:21]} 38. Qf2 {[%emt 0:00:51]} Be8 {[%emt 0:00:26]} 39. Rd3 {[%emt 0:00:28]} Qxb2 {[%emt 0:00:21]} 40. Qe3 {[%emt 0:00:28]} Qf6 {[%emt 0:00:34]} 41. Bxd5 {[%emt 0:00:26]} Bc6 {[%emt 0:01:28]} 42. Bxc6 {[%emt 0:00:20]} bxc6 {[%emt 0:00:07]} 43. Rb4 {[%emt 0:00:24]} Rhg7 {[%emt 0:00:45]} 44. Rb8+ {[%emt 0:00:45]} Kh7 {[%emt 0:00:11]} 45. Ra8 {[%emt 0:00:41]} h4 {[%emt 0:00:44]} 46. Kg2 {[%emt 0:00:35]} hxg3 {[%emt 0:00:33]} 47. hxg3 {[%emt 0:00:25]} f4 {[%emt 0:01:33]} 48. Qe4+ {[%emt 0:00:24]} Qf5 {[%emt 0:02:17]} 49. Qxf5+ {[%emt 0:00:32]} exf5 {[%emt 0:00:18]} 50. Rxa6 {[%emt 0:00:28]} fxg3 {[%emt 0:00:36]} 51. Rxc6 {[%emt 0:00:35]} f4 {[%emt 0:00:39]} 52. Rf3 {[%emt 0:00:23]} Rg4 {[%emt 0:01:23]} 53. a4 {[%emt 0:00:28]} Rh4 {[%emt 0:00:18]} 54. Rf6 {[%emt 0:00:33]} Rh2+ {[%emt 0:00:30]} 55. Kg1 {[%emt 0:00:27]} g2 {[%emt 0:00:17]} 56. Kxh2 {[%emt 0:00:35]} g1=Q+ {[%emt 0:00:11]} 57. Kh3 {[%emt 0:00:12]} Qg2+ {[%emt 0:00:05]} 58. Kh4 {[%emt 0:00:18]} Qg4# {[%emt 0:00:05]} 0-1

[Event "ESP-ch U1700 2024"]
[Site "Albacete"]
[Date "2024.08.31"]
[Round "8.1"]
[White "El Ammari Rovira, Yassin Jesus"]
[Black "Garcia-Munoz Arias, Diego"]
[Result "1-0"]
[ECO "D02"]
[WhiteElo "1582"]
[BlackElo "1696"]
[Annotator "NA RC COMBH"]
[PlyCount "103"]
[EventDate "2024.08.27"]
[EventType "swiss"]
[EventCountry "ESP"]
[SourceTitle "playchess.com"]
[Source "ChessBase"]
[SourceQuality "1"]
[TimeControl "5400+30"]

1. d4 d5 2. Nf3 e6 3. e3 Bd6 4. Bd3 Nd7 5. O-O f5 6. c4 c6 7. Nc3 Nh6 8. cxd5 exd5 9. Ne2 O-O 10. Qc2 Nf6 11. Ng3 Ne4 12. a3 Nf7 13. Bd2 g5 14. Bb4 g4 15. Bxd6 Nfxd6 16. Ne5 Qh4 17. Bxe4 fxe4 18. f4 Rf6 19. Kf2 Nf5 20. Rh1 Be6 21. Qe2 Kh8 22. Qxg4 Qxg4 23. Nxg4 Nxg3 24. Nxf6 Nxh1+ 25. Rxh1 Rc8 26. b4 a5 27. Rb1 Kg7 28. Nh5+ Kg6 29. Ng3 Ra8 30. Rb2 axb4 31. axb4 h5 32. h3 Ra3 33. b5 Bd7 34. bxc6 Bxc6 35. Ne2 Kf5 36. Nc1 Ra4 37. Na2 Rc4 38. Nb4 Rc3 39. Rc2 Rxc2+ 40. Nxc2 h4 41. Nb4 Bd7 42. Nxd5 Be6 43. Nb6 Bb3 44. g3 hxg3+ 45. Kxg3 Bd1 46. d5 Bh5 47. d6 Ke6 48. d7 Ke7 49. f5 Bf7 50. Kf4 Kd8 51. Kxe4 Kc7 52. Ke5 1-0

[Event "ESP-ch U1700 2024"]
[Site "Albacete"]
[Date "2024.08.31"]
[Round "8.2"]
[White "Saiz Alonso de Armino, Daniel"]
[Black "Jimenez Fernandez, Alejandro"]
[Result "1/2-1/2"]
[ECO "D02"]
[WhiteElo "1689"]
[BlackElo "1956"]
[Annotator "TA"]
[PlyCount "91"]
[EventDate "2024.08.27"]
[EventType "swiss"]
[EventCountry "ESP"]
[SourceTitle "playchess.com"]
[Source "ChessBase"]
[SourceQuality "1"]
[TimeControl "5400+30"]

{[%evp 14,91,42,21,33,25,49,48,56,48,53,54,50,14,82,35,84,77,113,0,77,72,109,51,56,58,58,59,62,56,63,52,58,64,74,52,70,62,94,103,104,87,92,16,16,23,32,0,7,15,8,8,8,10,13,9,11,6,6,0,0,0,2,-8,-8,-8,-8,-30,-30,-30,-30,-30,-18,-18,-18,-18,-18,-18,-18,-18]} 1. d4 {[%emt 0:00:02]} d5 2. Nf3 {[%emt 0:00:22]} Nf6 {[%emt 0:00:44]} 3. Bf4 {[%emt 0:00:21]} e6 {[%emt 0:00:06]} 4. e3 {[%emt 0:00:50][%cal Be2e3,Be3d4,Bd4e5][%mdl 32]} c5 {[%emt 0:00:14]} 5. c3 {[%emt 0:00:27]} Nc6 {[%emt 0:00:06]} 6. Nbd2 {[%emt 0:00:46]} cxd4 {[%emt 0:00:42]} 7. exd4 {[%emt 0:00:39]} Bd6 {[%emt 0:00:22]} 8. Bg3 {[%emt 0:00:52]} O-O {[%emt 0:01:12]} 9. Bd3 {[%emt 0:01:26]} Re8 {[%emt 0:01:30]} 10. Ne5 {[%emt 0:01:12]} Bxe5 {[%emt 0:03:48] White is slightly better.} 11. dxe5 {[%emt 0:00:56]} Nd7 {[%emt 0:00:43]} 12. Nf3 {[%emt 0:00:17]} f6 {[%emt 0:07:07]} 13. Qc2 {[%emt 0:04:51]} h6 {[%emt 0:05:30]} (13... f5 $1 $11 {remains equal.}) 14. Bg6 {[%emt 0:14:21]} (14. exf6 $16 Nxf6 15. Bg6) 14... Rf8 {[%emt 0:00:56]} (14... fxe5 $14 15. Bxe8 Qxe8) 15. exf6 $16 {[%emt 0:04:38]} Nxf6 {[%emt 0:01:23]} 16. Bh4 {[%emt 0:07:46] A strong pair of Bishops.} (16. O-O-O $16) 16... Ne7 {[%emt 0:14:41]} (16... e5 $11 17. Bg3 e4) 17. Ne5 {[%emt 0:04:19]} Nxg6 {[%emt 0:02:16]} 18. Qxg6 {[%emt 0:01:14]} (18. Nxg6 $16 Re8 19. Ne5) 18... Qe8 {[%emt 0:02:51] Black is weak on the dark squares} 19. Qxe8 {[%emt 0:08:43]} Rxe8 {[%emt 0:00:39]} 20. f3 {[%emt 0:01:56]} b6 {[%emt 0:01:49]} 21. a4 {[%emt 0:01:23]} Nd7 {[%emt 0:00:43]} 22. Bg3 {[%emt 0:01:56]} Nxe5 {[%emt 0:00:26]} 23. Bxe5 Kf7 {[%emt 0:00:58]} 24. O-O-O {[%emt 0:01:03]} Ba6 {[%emt 0:01:15]} 25. Rd4 {[%emt 0:01:15]} g5 {[%emt 0:02:01]} 26. h4 {[%emt 0:00:44]} Kg6 {[%emt 0:03:07]} 27. hxg5 {[%emt 0:01:33]} hxg5 {[%emt 0:01:19]} 28. g4 {[%emt 0:04:02] White is more active.} ({White should play} 28. Rg4 $16 {And now f4 would win.} Rf8 29. Rg3) 28... Rf8 $11 {[%emt 0:03:45]} 29. f4 {[%emt 0:04:23]} gxf4 {[%emt 0:00:45]} 30. Rxf4 {[%emt 0:01:44]} Rxf4 {[%emt 0:02:07]} 31. Bxf4 {[%emt 0:00:11][%mdl 4096] Endgame. KRB-KRB} Rf8 {[%emt 0:01:22]} 32. Rh6+ {[%emt 0:01:44]} Kg7 {[%emt 0:01:15]} 33. Be3 {[%emt 0:01:14]} Rf1+ {[%emt 0:02:43]} 34. Kd2 {[%emt 0:01:04]} Rf2+ {[%emt 0:00:39]} 35. Bxf2 {[%emt 0:12:04]} Kxh6 {[%emt 0:00:06] KB-KB} 36. Ke3 {[%emt 0:02:43]} Kg5 {[%emt 0:03:01]} 37. Bg3 {[%emt 0:04:33]} Bc4 {[%emt 0:05:19]} 38. b4 {[%emt 0:01:30]} Kxg4 {[%emt 0:01:42]} 39. Be5 {[%emt 0:00:29]} Bb3 {[%emt 0:02:30]} 40. a5 {[%emt 0:00:05]} bxa5 {[%emt 0:00:08]} 41. bxa5 {[%emt 0:00:06]} a6 {[%emt 0:00:44]} 42. Kd4 {[%emt 0:00:11]} Kf3 {[%emt 0:04:01]} 43. Bc7 {[%emt 0:00:10] The position is equal.} Ke2 {[%emt 0:01:38]} 44. Be5 {[%emt 0:00:20]} Kd2 {[%emt 0:00:23]} 45. Bf4+ {[%emt 0:00:10]} Kc2 {[%emt 0:00:38]} 46. Be5 {[%emt 0:00:09] Weighted Error Value: White=0.18 (very precise) /Black=0.15 (very precise) .  Mistake:       	White=4     	Black=3      Inaccurate:     	White=2     	Black=3      OK:         	White=11    	Black=15     Best:        	White=1     	Black=2} 1/2-1/2

[Event "ESP-ch U1700 2024"]
[Site "Albacete"]
[Date "2024.08.31"]
[Round "8.3"]
[White "Caballero Sanchez, Francisco"]
[Black "Muniz Otero, Lucas"]
[Result "0-1"]
[ECO "B83"]
[WhiteElo "1682"]
[BlackElo "1605"]
[Annotator "NA RC COMBH"]
[PlyCount "67"]
[EventDate "2024.08.27"]
[EventType "swiss"]
[EventCountry "ESP"]
[SourceTitle "playchess.com"]
[Source "ChessBase"]
[SourceQuality "1"]
[TimeControl "5400+30"]

1. e4 {[%emt 0:00:01]} c5 {[%emt 0:00:05]} 2. Nf3 {[%emt 0:00:07]} e6 {[%emt 0:00:10]} 3. d4 {[%emt 0:00:04]} cxd4 {[%emt 0:00:51]} 4. Nxd4 {[%emt 0:00:13]} Nf6 {[%emt 0:00:38]} 5. Nc3 {[%emt 0:00:08]} d6 {[%emt 0:01:33]} 6. Be2 {[%emt 0:01:07]} Be7 {[%emt 0:00:24]} 7. Be3 {[%emt 0:05:39]} O-O {[%emt 0:00:24]} 8. f3 {[%emt 0:00:39]} a6 {[%emt 0:03:27]} 9. g4 {[%emt 0:03:18]} b5 {[%emt 0:01:53]} 10. g5 {[%emt 0:00:59]} Ne8 {[%emt 0:03:02]} 11. h4 {[%emt 0:00:47]} Bb7 {[%emt 0:00:47]} 12. Rg1 {[%emt 0:01:23]} Nd7 {[%emt 0:07:31]} 13. h5 {[%emt 0:01:57]} Nc5 {[%emt 0:05:12]} 14. b4 {[%emt 0:02:32]} Nd7 {[%emt 0:02:16]} 15. g6 {[%emt 0:00:19]} Bh4+ {[%emt 0:01:10]} 16. Kf1 {[%emt 0:02:54]} hxg6 {[%emt 0:18:56]} 17. hxg6 {[%emt 0:00:35]} Qe7 {[%emt 0:09:57]} 18. Qd2 {[%emt 0:01:44]} Ne5 {[%emt 0:05:18]} 19. gxf7+ {[%emt 0:01:35]} Qxf7 {[%emt 0:04:55]} 20. Bg5 {[%emt 0:01:39]} Bxg5 21. Qxg5 {[%emt 0:01:01]} Rc8 {[%emt 0:03:07]} 22. Qe3 {[%emt 0:02:40]} Nf6 {[%emt 0:03:03]} 23. Ke1 {[%emt 0:01:59]} Rfe8 {[%emt 0:02:29]} 24. Rh1 {[%emt 0:01:17]} Qc7 {[%emt 0:00:39]} 25. Kd2 {[%emt 0:00:40]} Nc4+ {[%emt 0:00:40]} 26. Bxc4 {[%emt 0:00:11]} Qxc4 {[%emt 0:00:06]} 27. Rag1 {[%emt 0:03:39]} Rc7 {[%emt 0:03:39]} 28. a3 {[%emt 0:02:27]} Rec8 {[%emt 0:05:29]} 29. Nde2 {[%emt 0:01:22]} d5 {[%emt 0:02:33]} 30. Qh6 {[%emt 0:02:07]} Ne8 {[%emt 0:07:24]} 31. Qxe6+ {[%emt 0:00:18]} Rf7 {[%emt 0:00:35]} 32. Rh8+ {[%emt 0:00:37]} Kxh8 {[%emt 0:00:02]} 33. Qxf7 {[%emt 0:00:14]} Ba8 {[%emt 0:00:16]} 34. Rh1# {[%emt 0:00:16]} 0-1